{"text_format":"3","workbook":"xlsx","n_sheets":9,"sheets":["Free State","Gauteng","KwaZulu Natal","Limpopo","Mpumalanga","Eastern Cape","Northern Cape","North West","Western Cape"],"not_rendered":{"external_links":62,"defined_names":1890},"read":"whole","date_system":"1900"}

{"sheet":"Free State","index":0,"n_rows":51,"n_cols":8,"rows_kept":51,"merged":[[1,2,1,3],[6,2,6,5],[46,1,46,7]]}
[]
[null,{"$f":"A6","v":"Name of Company:"}]
[null,"Tick the province you are tendering for and have a foot print in (base office)","Have base office","Specify the base location"]
[null,"Free State"]
[]
["Name of Company:"]
["Scope Of Work",null,"Land Management Supervisory and Advisory Services"]
["NEC CONTRACT PRICING"]
[]
["Eskom reserves the rights to split the contract based on operational need and competitiveness"]
["Normal working hours: 08:00 - 16:30"]
[]
["Item No.","Description","Unit","Person","Basic rate","Indirect cost","Final rate ","Amount"]
[null,"To be read in conjunction with the scope of work"]
[null,"Costs to be all-inclusive"]
[]
[1,{"$f":"B4","v":"Free State"}]
[1.1,"Supervisor – Firebreaks","Hr",1,{"$nulls":3},{"$f":"D18*G18","v":0}]
[1.2,"Supervisor – Land Facilities Maintenance","Hr",1,{"$nulls":3},0]
[1.3,"Supervisor – Invasive Species Clearing/Maintenance","Hr",1,{"$nulls":3},0]
[]
[2,"Communication Costs",null,null,"Daily rate","Weekly rate","Monthly rate"]
[2.1,"Communication","sum",1,{"$nulls":3},{"$f":"D23*G23","v":0}]
[]
[]
["Item No.","Description","Unit","Quantity","Rate","Amount"]
[3,"Health and Safety"]
[3.1,"PPE**","each",{"v":1,"d":"1.00"},null,{"$f":"(D28*E28)","v":0}]
[3.2,"Medicals**","each",{"v":1,"d":"1.00"},null,{"$f":"(D29*E29)","v":0}]
[3.3,"Health and Safety File","each",{"v":1,"d":"1.00"},null,0]
[3.4,"Safety Training***","each",{"v":1,"d":"1.00"},null,0]
[]
[4,"Miscellaneous costs"]
[4.1,"Transport","Km",{"v":1,"d":"1.00"},null,0]
[4.2,"Accommodation – Hotel / Lodge / Guesthouse (3-star equivalent) including breakfast and dinner, when overnight stays are required.","Night",{"v":1,"d":"1.00"},null,0]
[]
[5,"Asbestos Removal"]
[5.1,"Asbestos Removal Procedure Advisory (per scope requirement)","Hr",{"v":1,"d":"1.00"},null,0]
[5.2,"Advisory Services – Legal & Regulatory Compliance (permits, environmental laws)","Hr",{"v":1,"d":"1.00"},null,0]
[null,"TOTAL",{"$nulls":3},{"$f":"SUM(F28:F39)","v":0}]
[]
[null,"Note:"]
[null,"Basic rate is the employee’s wage only"]
[null,"Indirect costs are the extras, such as employee benefits, allowances, overheads, and profit"]
[null,"Final rate is the all-in cost (total basic salary), meaning the basic wage plus the benefits, allowances, overheads, and profit."]
[null,"Overtime factors: \nWeekday/Saturday (outside normal hours) - 0,5\nSunday/Public holiday (all hours) - 1,0\n"]
[null,"Overtime Calculation Method:\n\nEmployer will fully compensate the Contractor for their profit and overheads for all hours worked.\n\nExample (Weekday – Monday to Saturday)\nAssume an employee worked a total of 12 hours in one day:\n\nNormal Time: 12 hours × R100.00 × 1.00 = R1,200.00 (includes profit and overheads)\nOvertime: 4 hours × R45.00 × 0.50 = R90.00\nTotal Reimbursement: R1,290.00\n\nNote: Profit and overheads are applied to all hours worked. Overtime factors are applied to the basic rate."]
[]
[null,"Key:"]
["**","Items to be paid once annually per resource"]
["***","Contractor to identify the training required"]

{"sheet":"Gauteng","index":1,"n_rows":51,"n_cols":8,"rows_kept":51,"merged":[[1,2,1,3],[6,2,6,5],[46,1,46,7]]}
[]
[null,{"$f":"A6","v":"Name of Company:"}]
[null,"Tick the province you are tendering for and have a foot print in (base office)","Have base office","Specify the base location"]
[null,"Gauteng"]
[]
["Name of Company:"]
["Scope Of Work",null,"Land Management Supervisory and Advisory Services"]
["NEC CONTRACT PRICING"]
[]
["Eskom reserves the rights to split the contract based on operational need and competitiveness"]
["Normal working hours: 08:00 - 16:30"]
[]
["Item No.","Description","Unit","Person","Basic rate","Indirect cost","Final rate ","Amount"]
[null,"To be read in conjunction with the scope of work"]
[null,"Costs to be all-inclusive"]
[]
[1,{"$f":"B4","v":"Gauteng"}]
[1.1,"Supervisor – Firebreaks","Hr",1,{"$nulls":3},{"$f":"D18*G18","v":0}]
[1.2,"Supervisor – Land Facilities Maintenance","Hr",1,{"$nulls":3},0]
[1.3,"Supervisor – Invasive Species Clearing/Maintenance","Hr",1,{"$nulls":3},0]
[]
[2,"Communication Costs",null,null,"Daily rate","Weekly rate","Monthly rate"]
[2.1,"Communication","sum",1,{"$nulls":3},{"$f":"D23*G23","v":0}]
[]
[]
["Item No.","Description","Unit","Quantity","Rate","Amount"]
[3,"Health and Safety"]
[3.1,"PPE**","each",{"v":1,"d":"1.00"},null,{"$f":"(D28*E28)","v":0}]
[3.2,"Medicals**","each",{"v":1,"d":"1.00"},null,{"$f":"(D29*E29)","v":0}]
[3.3,"Health and Safety File","each",{"v":1,"d":"1.00"},null,0]
[3.4,"Safety Training***","each",{"v":1,"d":"1.00"},null,0]
[]
[4,"Miscellaneous costs"]
[4.1,"Transport","Km",{"v":1,"d":"1.00"},null,0]
[4.2,"Accommodation – Hotel / Lodge / Guesthouse (3-star equivalent) including breakfast and dinner, when overnight stays are required.","Night",{"v":1,"d":"1.00"},null,0]
[]
[5,"Asbestos Removal"]
[5.1,"Asbestos Removal Procedure Advisory (per scope requirement)","Hr",{"v":1,"d":"1.00"},null,0]
[5.2,"Advisory Services – Legal & Regulatory Compliance (permits, environmental laws)","Hr",{"v":1,"d":"1.00"},null,0]
[null,"TOTAL",{"$nulls":3},{"$f":"SUM(F28:F39)","v":0}]
[]
[null,"Note:"]
[null,"Basic rate is the employee’s wage only"]
[null,"Indirect costs are the extras, such as employee benefits, allowances, overheads, and profit"]
[null,"Final rate is the all-in cost (total basic salary), meaning the basic wage plus the benefits, allowances, overheads, and profit."]
[null,"Overtime factors: \nWeekday/Saturday (outside normal hours) - 0,5\nSunday/Public holiday (all hours) - 1,0\n"]
[null,"Overtime Calculation Method:\n\nEmployer will fully compensate the Contractor for their profit and overheads for all hours worked.\n\nExample (Weekday – Monday to Saturday)\nAssume an employee worked a total of 12 hours in one day:\n\nNormal Time: 12 hours × R100.00 × 1.00 = R1,200.00 (includes profit and overheads)\nOvertime: 4 hours × R45.00 × 0.50 = R90.00\nTotal Reimbursement: R1,290.00\n\nNote: Profit and overheads are applied to all hours worked. Overtime factors are applied to the basic rate."]
[]
[null,"Key:"]
["**","Items to be paid once annually per resource"]
["***","Contractor to identify the training required"]

{"sheet":"KwaZulu Natal","index":2,"n_rows":51,"n_cols":8,"rows_kept":51,"merged":[[1,2,1,3],[6,2,6,5],[46,1,46,7]]}
[]
[null,{"$f":"A6","v":"Name of Company:"}]
[null,"Tick the province you are tendering for and have a foot print in (base office)","Have base office","Specify the base location"]
[null,"KwaZulu Natal"]
[]
["Name of Company:"]
["Scope Of Work",null,"Land Management Supervisory and Advisory Services"]
["NEC CONTRACT PRICING"]
[]
["Eskom reserves the rights to split the contract based on operational need and competitiveness"]
["Normal working hours: 08:00 - 16:30"]
[]
["Item No.","Description","Unit","Person","Basic rate","Indirect cost","Final rate ","Amount"]
[null,"To be read in conjunction with the scope of work"]
[null,"Costs to be all-inclusive"]
[]
[1,{"$f":"B4","v":"KwaZulu Natal"}]
[1.1,"Supervisor – Firebreaks","Hr",1,{"$nulls":3},{"$f":"D18*G18","v":0}]
[1.2,"Supervisor – Land Facilities Maintenance","Hr",1,{"$nulls":3},0]
[1.3,"Supervisor – Invasive Species Clearing/Maintenance","Hr",1,{"$nulls":3},0]
[]
[2,"Communication Costs",null,null,"Daily rate","Weekly rate","Monthly rate"]
[2.1,"Communication","sum",1,{"$nulls":3},{"$f":"D23*G23","v":0}]
[]
[]
["Item No.","Description","Unit","Quantity","Rate","Amount"]
[3,"Health and Safety"]
[3.1,"PPE**","each",{"v":1,"d":"1.00"},null,{"$f":"(D28*E28)","v":0}]
[3.2,"Medicals**","each",{"v":1,"d":"1.00"},null,{"$f":"(D29*E29)","v":0}]
[3.3,"Health and Safety File","each",{"v":1,"d":"1.00"},null,0]
[3.4,"Safety Training***","each",{"v":1,"d":"1.00"},null,0]
[]
[4,"Miscellaneous costs"]
[4.1,"Transport","Km",{"v":1,"d":"1.00"},null,0]
[4.2,"Accommodation – Hotel / Lodge / Guesthouse (3-star equivalent) including breakfast and dinner, when overnight stays are required.","Night",{"v":1,"d":"1.00"},null,0]
[]
[5,"Asbestos Removal"]
[5.1,"Asbestos Removal Procedure Advisory (per scope requirement)","Hr",{"v":1,"d":"1.00"},null,0]
[5.2,"Advisory Services – Legal & Regulatory Compliance (permits, environmental laws)","Hr",{"v":1,"d":"1.00"},null,0]
[null,"TOTAL",{"$nulls":3},{"$f":"SUM(F28:F39)","v":0}]
[]
[null,"Note:"]
[null,"Basic rate is the employee’s wage only"]
[null,"Indirect costs are the extras, such as employee benefits, allowances, overheads, and profit"]
[null,"Final rate is the all-in cost (total basic salary), meaning the basic wage plus the benefits, allowances, overheads, and profit."]
[null,"Overtime factors: \nWeekday/Saturday (outside normal hours) - 0,5\nSunday/Public holiday (all hours) - 1,0\n"]
[null,"Overtime Calculation Method:\n\nEmployer will fully compensate the Contractor for their profit and overheads for all hours worked.\n\nExample (Weekday – Monday to Saturday)\nAssume an employee worked a total of 12 hours in one day:\n\nNormal Time: 12 hours × R100.00 × 1.00 = R1,200.00 (includes profit and overheads)\nOvertime: 4 hours × R45.00 × 0.50 = R90.00\nTotal Reimbursement: R1,290.00\n\nNote: Profit and overheads are applied to all hours worked. Overtime factors are applied to the basic rate."]
[]
[null,"Key:"]
["**","Items to be paid once annually per resource"]
["***","Contractor to identify the training required"]

{"sheet":"Limpopo","index":3,"n_rows":51,"n_cols":8,"rows_kept":51,"merged":[[1,2,1,3],[6,2,6,5],[46,1,46,7]]}
[]
[null,{"$f":"A6","v":"Name of Company:"}]
[null,"Tick the province you are tendering for and have a foot print in (base office)","Have base office","Specify the base location"]
[null,"Limpopo"]
[]
["Name of Company:"]
["Scope Of Work",null,"Land Management Supervisory and Advisory Services"]
["NEC CONTRACT PRICING"]
[]
["Eskom reserves the rights to split the contract based on operational need and competitiveness"]
["Normal working hours: 08:00 - 16:30"]
[]
["Item No.","Description","Unit","Person","Basic rate","Indirect cost","Final rate ","Amount"]
[null,"To be read in conjunction with the scope of work"]
[null,"Costs to be all-inclusive"]
[]
[1,{"$f":"B4","v":"Limpopo"}]
[1.1,"Supervisor – Firebreaks","Hr",1,{"$nulls":3},{"$f":"D18*G18","v":0}]
[1.2,"Supervisor – Land Facilities Maintenance","Hr",1,{"$nulls":3},0]
[1.3,"Supervisor – Invasive Species Clearing/Maintenance","Hr",1,{"$nulls":3},0]
[]
[2,"Communication Costs",null,null,"Daily rate","Weekly rate","Monthly rate"]
[2.1,"Communication","sum",1,{"$nulls":3},{"$f":"D23*G23","v":0}]
[]
[]
["Item No.","Description","Unit","Quantity","Rate","Amount"]
[3,"Health and Safety"]
[3.1,"PPE**","each",{"v":1,"d":"1.00"},null,{"$f":"(D28*E28)","v":0}]
[3.2,"Medicals**","each",{"v":1,"d":"1.00"},null,{"$f":"(D29*E29)","v":0}]
[3.3,"Health and Safety File","each",{"v":1,"d":"1.00"},null,0]
[3.4,"Safety Training***","each",{"v":1,"d":"1.00"},null,0]
[]
[4,"Miscellaneous costs"]
[4.1,"Transport","Km",{"v":1,"d":"1.00"},null,0]
[4.2,"Accommodation – Hotel / Lodge / Guesthouse (3-star equivalent) including breakfast and dinner, when overnight stays are required.","Night",{"v":1,"d":"1.00"},null,0]
[]
[5,"Asbestos Removal"]
[5.1,"Asbestos Removal Procedure Advisory (per scope requirement)","Hr",{"v":1,"d":"1.00"},null,0]
[5.2,"Advisory Services – Legal & Regulatory Compliance (permits, environmental laws)","Hr",{"v":1,"d":"1.00"},null,0]
[null,"TOTAL",{"$nulls":3},{"$f":"SUM(F28:F39)","v":0}]
[]
[null,"Note:"]
[null,"Basic rate is the employee’s wage only"]
[null,"Indirect costs are the extras, such as employee benefits, allowances, overheads, and profit"]
[null,"Final rate is the all-in cost (total basic salary), meaning the basic wage plus the benefits, allowances, overheads, and profit."]
[null,"Overtime factors: \nWeekday/Saturday (outside normal hours) - 0,5\nSunday/Public holiday (all hours) - 1,0\n"]
[null,"Overtime Calculation Method:\n\nEmployer will fully compensate the Contractor for their profit and overheads for all hours worked.\n\nExample (Weekday – Monday to Saturday)\nAssume an employee worked a total of 12 hours in one day:\n\nNormal Time: 12 hours × R100.00 × 1.00 = R1,200.00 (includes profit and overheads)\nOvertime: 4 hours × R45.00 × 0.50 = R90.00\nTotal Reimbursement: R1,290.00\n\nNote: Profit and overheads are applied to all hours worked. Overtime factors are applied to the basic rate."]
[]
[null,"Key:"]
["**","Items to be paid once annually per resource"]
["***","Contractor to identify the training required"]

{"sheet":"Mpumalanga","index":4,"n_rows":51,"n_cols":8,"rows_kept":51,"merged":[[1,2,1,3],[6,2,6,5],[46,1,46,7]]}
[]
[null,{"$f":"A6","v":"Name of Company:"}]
[null,"Tick the province you are tendering for and have a foot print in (base office)","Have base office","Specify the base location"]
[null,"Mpumalanga"]
[]
["Name of Company:"]
["Scope Of Work",null,"Land Management Supervisory and Advisory Services"]
["NEC CONTRACT PRICING"]
[]
["Eskom reserves the rights to split the contract based on operational need and competitiveness"]
["Normal working hours: 08:00 - 16:30"]
[]
["Item No.","Description","Unit","Person","Basic rate","Indirect cost","Final rate ","Amount"]
[null,"To be read in conjunction with the scope of work"]
[null,"Costs to be all-inclusive"]
[]
[6,{"$f":"B4","v":"Mpumalanga"}]
["6.1","Supervisor – Firebreaks","Hr",1,{"$nulls":3},{"$f":"D18*G18","v":0}]
["6.2","Supervisor – Land Facilities Maintenance","Hr",1,{"$nulls":3},0]
["6.3","Supervisor – Invasive Species Clearing/Maintenance","Hr",1,{"$nulls":3},0]
[]
[10,"Communication Costs",null,null,"Daily rate","Weekly rate","Monthly rate"]
[10.1,"Communication","sum",1,{"$nulls":3},{"$f":"D23*G23","v":0}]
[]
[]
["Item No.","Description","Unit","Quantity","Rate","Amount"]
[3,"Health and Safety"]
[3.1,"PPE**","each",{"v":1,"d":"1.00"},null,{"$f":"(D28*E28)","v":0}]
[3.2,"Medicals**","each",{"v":1,"d":"1.00"},null,{"$f":"(D29*E29)","v":0}]
[3.3,"Health and Safety File","each",{"v":1,"d":"1.00"},null,0]
[3.4,"Safety Training***","each",{"v":1,"d":"1.00"},null,0]
[]
[4,"Miscellaneous costs"]
[4.1,"Transport","Km",{"v":1,"d":"1.00"},null,0]
[4.2,"Accommodation – Hotel / Lodge / Guesthouse (3-star equivalent) including breakfast and dinner, when overnight stays are required.","Night",{"v":1,"d":"1.00"},null,0]
[]
[5,"Asbestos Removal"]
[5.1,"Asbestos Removal Procedure Advisory (per scope requirement)","Hr",{"v":1,"d":"1.00"},null,0]
[5.2,"Advisory Services – Legal & Regulatory Compliance (permits, environmental laws)","Hr",{"v":1,"d":"1.00"},null,0]
[null,"TOTAL",{"$nulls":3},{"$f":"SUM(F28:F39)","v":0}]
[]
[null,"Note:"]
[null,"Basic rate is the employee’s wage only"]
[null,"Indirect costs are the extras, such as employee benefits, allowances, overheads, and profit"]
[null,"Final rate is the all-in cost (total basic salary), meaning the basic wage plus the benefits, allowances, overheads, and profit."]
[null,"Overtime factors: \nWeekday/Saturday (outside normal hours) - 0,5\nSunday/Public holiday (all hours) - 1,0\n"]
[null,"Overtime Calculation Method:\n\nEmployer will fully compensate the Contractor for their profit and overheads for all hours worked.\n\nExample (Weekday – Monday to Saturday)\nAssume an employee worked a total of 12 hours in one day:\n\nNormal Time: 12 hours × R100.00 × 1.00 = R1,200.00 (includes profit and overheads)\nOvertime: 4 hours × R45.00 × 0.50 = R90.00\nTotal Reimbursement: R1,290.00\n\nNote: Profit and overheads are applied to all hours worked. Overtime factors are applied to the basic rate."]
[]
[null,"Key:"]
["**","Items to be paid once annually per resource"]
["***","Contractor to identify the training required"]

{"sheet":"Eastern Cape","index":5,"n_rows":51,"n_cols":8,"rows_kept":51,"merged":[[1,2,1,3],[6,2,6,5],[46,1,46,7]]}
[]
[null,{"$f":"A6","v":"Name of Company:"}]
[null,"Tick the province you are tendering for and have a foot print in (base office)","Have base office","Specify the base location"]
[null,"Eastern Cape"]
[]
["Name of Company:"]
["Scope Of Work",null,"Land Management Supervisory and Advisory Services"]
["NEC CONTRACT PRICING"]
[]
["Eskom reserves the rights to split the contract based on operational need and competitiveness"]
["Normal working hours: 08:00 - 16:30"]
[]
["Item No.","Description","Unit","Person","Basic rate","Indirect cost","Final rate ","Amount"]
[null,"To be read in conjunction with the scope of work"]
[null,"Costs to be all-inclusive"]
[]
[1,{"$f":"B4","v":"Eastern Cape"}]
["1.1","Supervisor – Firebreaks","Hr",1,{"$nulls":3},{"$f":"D18*G18","v":0}]
["1.2","Supervisor – Land Facilities Maintenance","Hr",1,{"$nulls":3},{"$f":"D19*G19","v":0}]
["1.3","Supervisor – Invasive Species Clearing/Maintenance","Hr",1,{"$nulls":3},0]
[]
[2,"Communication Costs",null,null,"Daily rate","Weekly rate","Monthly rate"]
[2.1,"Communication","sum",1,{"$nulls":3},{"$f":"D23*G23","v":0}]
[]
[]
["Item No.","Description","Unit","Quantity","Rate","Amount"]
[3,"Health and Safety"]
[3.1,"PPE**","each",{"v":1,"d":"1.00"},null,{"$f":"(D28*E28)","v":0}]
[3.2,"Medicals**","each",{"v":1,"d":"1.00"},null,{"$f":"(D29*E29)","v":0}]
[3.3,"Health and Safety File","each",{"v":1,"d":"1.00"},null,0]
[3.4,"Safety Training***","each",{"v":1,"d":"1.00"},null,0]
[]
[4,"Miscellaneous costs"]
[4.1,"Transport","Km",{"v":1,"d":"1.00"},null,0]
[4.2,"Accommodation – Hotel / Lodge / Guesthouse (3-star equivalent) including breakfast and dinner, when overnight stays are required.","Night",{"v":1,"d":"1.00"},null,0]
[]
[5,"Asbestos Removal"]
[5.1,"Asbestos Removal Procedure Advisory (per scope requirement)","Hr",{"v":1,"d":"1.00"},null,0]
[5.2,"Advisory Services – Legal & Regulatory Compliance (permits, environmental laws)","Hr",{"v":1,"d":"1.00"},null,0]
[null,"TOTAL",{"$nulls":3},{"$f":"SUM(F28:F39)","v":0}]
[]
[null,"Note:"]
[null,"Basic rate is the employee’s wage only"]
[null,"Indirect costs are the extras, such as employee benefits, allowances, overheads, and profit"]
[null,"Final rate is the all-in cost (total basic salary), meaning the basic wage plus the benefits, allowances, overheads, and profit."]
[null,"Overtime factors: \nWeekday/Saturday (outside normal hours) - 0,5\nSunday/Public holiday (all hours) - 1,0\n"]
[null,"Overtime Calculation Method:\n\nEmployer will fully compensate the Contractor for their profit and overheads for all hours worked.\n\nExample (Weekday – Monday to Saturday)\nAssume an employee worked a total of 12 hours in one day:\n\nNormal Time: 12 hours × R100.00 × 1.00 = R1,200.00 (includes profit and overheads)\nOvertime: 4 hours × R45.00 × 0.50 = R90.00\nTotal Reimbursement: R1,290.00\n\nNote: Profit and overheads are applied to all hours worked. Overtime factors are applied to the basic rate."]
[]
[null,"Key:"]
["**","Items to be paid once annually per resource"]
["***","Contractor to identify the training required"]

{"sheet":"Northern Cape","index":6,"n_rows":51,"n_cols":8,"rows_kept":51,"merged":[[1,2,1,3],[6,2,6,5],[46,1,46,7]]}
[]
[null,{"$f":"A6","v":"Name of Company:"}]
[null,"Tick the province you are tendering for and have a foot print in (base office)","Have base office","Specify the base location"]
[null,"Northen Cape"]
[]
["Name of Company:"]
["Scope Of Work",null,"Land Management Supervisory and Advisory Services"]
["NEC CONTRACT PRICING"]
[]
["Eskom reserves the rights to split the contract based on operational need and competitiveness"]
["Normal working hours: 08:00 - 16:30"]
[]
["Item No.","Description","Unit","Person","Basic rate","Indirect cost","Final rate ","Amount"]
[null,"To be read in conjunction with the scope of work"]
[null,"Costs to be all-inclusive"]
[]
[1,{"$f":"B4","v":"Northen Cape"}]
[1.1,"Supervisor – Firebreaks","Hr",1,{"$nulls":3},{"$f":"D18*G18","v":0}]
[1.2,"Supervisor – Land Facilities Maintenance","Hr",1,{"$nulls":3},0]
[1.3,"Supervisor – Invasive Species Clearing/Maintenance","Hr",1,{"$nulls":3},0]
[]
[2,"Communication Costs",null,null,"Daily rate","Weekly rate","Monthly rate"]
[2.1,"Communication","sum",1,{"$nulls":3},{"$f":"D23*G23","v":0}]
[]
[]
["Item No.","Description","Unit","Quantity","Rate","Amount"]
[3,"Health and Safety"]
[3.1,"PPE**","each",{"v":1,"d":"1.00"},null,{"$f":"(D28*E28)","v":0}]
[3.2,"Medicals**","each",{"v":1,"d":"1.00"},null,{"$f":"(D29*E29)","v":0}]
[3.3,"Health and Safety File","each",{"v":1,"d":"1.00"},null,0]
[3.4,"Safety Training***","each",{"v":1,"d":"1.00"},null,0]
[]
[4,"Miscellaneous costs"]
[4.1,"Transport","Km",{"v":1,"d":"1.00"},null,0]
[4.2,"Accommodation – Hotel / Lodge / Guesthouse (3-star equivalent) including breakfast and dinner, when overnight stays are required.","Night",{"v":1,"d":"1.00"},null,0]
[]
[5,"Asbestos Removal"]
[5.1,"Asbestos Removal Procedure Advisory (per scope requirement)","Hr",{"v":1,"d":"1.00"},null,0]
[5.2,"Advisory Services – Legal & Regulatory Compliance (permits, environmental laws)","Hr",{"v":1,"d":"1.00"},null,0]
[null,"TOTAL",{"$nulls":3},{"$f":"SUM(F28:F39)","v":0}]
[]
[null,"Note:"]
[null,"Basic rate is the employee’s wage only"]
[null,"Indirect costs are the extras, such as employee benefits, allowances, overheads, and profit"]
[null,"Final rate is the all-in cost (total basic salary), meaning the basic wage plus the benefits, allowances, overheads, and profit."]
[null,"Overtime factors: \nWeekday/Saturday (outside normal hours) - 0,5\nSunday/Public holiday (all hours) - 1,0\n"]
[null,"Overtime Calculation Method:\n\nEmployer will fully compensate the Contractor for their profit and overheads for all hours worked.\n\nExample (Weekday – Monday to Saturday)\nAssume an employee worked a total of 12 hours in one day:\n\nNormal Time: 12 hours × R100.00 × 1.00 = R1,200.00 (includes profit and overheads)\nOvertime: 4 hours × R45.00 × 0.50 = R90.00\nTotal Reimbursement: R1,290.00\n\nNote: Profit and overheads are applied to all hours worked. Overtime factors are applied to the basic rate."]
[]
[null,"Key:"]
["**","Items to be paid once annually per resource"]
["***","Contractor to identify the training required"]

{"sheet":"North West","index":7,"n_rows":51,"n_cols":8,"rows_kept":51,"merged":[[1,2,1,3],[6,2,6,5],[46,1,46,7]]}
[]
[null,{"$f":"A6","v":"Name of Company:"}]
[null,"Tick the province you are tendering for and have a foot print in (base office)","Have base office","Specify the base location"]
[null,"North-West"]
[]
["Name of Company:"]
["Scope Of Work",null,"Land Management Supervisory and Advisory Services"]
["NEC CONTRACT PRICING"]
[]
["Eskom reserves the rights to split the contract based on operational need and competitiveness"]
["Normal working hours: 08:00 - 16:30"]
[]
["Item No.","Description","Unit","Person","Basic rate","Indirect cost","Final rate ","Amount"]
[null,"To be read in conjunction with the scope of work"]
[null,"Costs to be all-inclusive"]
[]
[1,{"$f":"B4","v":"North-West"}]
[1.1,"Supervisor – Firebreaks","Hr",1,{"$nulls":3},{"$f":"D18*G18","v":0}]
[1.2,"Supervisor – Land Facilities Maintenance","Hr",1,{"$nulls":3},0]
[1.3,"Supervisor – Invasive Species Clearing/Maintenance","Hr",1,{"$nulls":3},0]
[]
[2,"Communication Costs",null,null,"Daily rate","Weekly rate","Monthly rate"]
[2.1,"Communication","sum",1,{"$nulls":3},{"$f":"D23*G23","v":0}]
[]
[]
["Item No.","Description","Unit","Quantity","Rate","Amount"]
[3,"Health and Safety"]
[3.1,"PPE**","each",{"v":1,"d":"1.00"},null,{"$f":"(D28*E28)","v":0}]
[3.2,"Medicals**","each",{"v":1,"d":"1.00"},null,{"$f":"(D29*E29)","v":0}]
[3.3,"Health and Safety File","each",{"v":1,"d":"1.00"},null,0]
[3.4,"Safety Training***","each",{"v":1,"d":"1.00"},null,0]
[]
[4,"Miscellaneous costs"]
[4.1,"Transport","Km",{"v":1,"d":"1.00"},null,0]
[4.2,"Accommodation – Hotel / Lodge / Guesthouse (3-star equivalent) including breakfast and dinner, when overnight stays are required.","Night",{"v":1,"d":"1.00"},null,0]
[]
[5,"Asbestos Removal"]
[5.1,"Asbestos Removal Procedure Advisory (per scope requirement)","Hr",{"v":1,"d":"1.00"},null,0]
[5.2,"Advisory Services – Legal & Regulatory Compliance (permits, environmental laws)","Hr",{"v":1,"d":"1.00"},null,0]
[null,"TOTAL",{"$nulls":3},{"$f":"SUM(F28:F39)","v":0}]
[]
[null,"Note:"]
[null,"Basic rate is the employee’s wage only"]
[null,"Indirect costs are the extras, such as employee benefits, allowances, overheads, and profit"]
[null,"Final rate is the all-in cost (total basic salary), meaning the basic wage plus the benefits, allowances, overheads, and profit."]
[null,"Overtime factors: \nWeekday/Saturday (outside normal hours) - 0,5\nSunday/Public holiday (all hours) - 1,0\n"]
[null,"Overtime Calculation Method:\n\nEmployer will fully compensate the Contractor for their profit and overheads for all hours worked.\n\nExample (Weekday – Monday to Saturday)\nAssume an employee worked a total of 12 hours in one day:\n\nNormal Time: 12 hours × R100.00 × 1.00 = R1,200.00 (includes profit and overheads)\nOvertime: 4 hours × R45.00 × 0.50 = R90.00\nTotal Reimbursement: R1,290.00\n\nNote: Profit and overheads are applied to all hours worked. Overtime factors are applied to the basic rate."]
[]
[null,"Key:"]
["**","Items to be paid once annually per resource"]
["***","Contractor to identify the training required"]

{"sheet":"Western Cape","index":8,"n_rows":51,"n_cols":8,"rows_kept":51,"merged":[[1,2,1,3],[6,2,6,5],[46,1,46,7]]}
[]
[null,{"$f":"A6","v":"Name of Company:"}]
[null,"Tick the province you are tendering for and have a foot print in (base office)","Have base office","Specify the base location"]
[null,"Western Cape"]
[]
["Name of Company:"]
["Scope Of Work",null,"Land Management Supervisory and Advisory Services"]
["NEC CONTRACT PRICING"]
[]
["Eskom reserves the rights to split the contract based on operational need and competitiveness"]
["Normal working hours: 08:00 - 16:30"]
[]
["Item No.","Description","Unit","Person","Basic rate","Indirect cost","Final rate ","Amount"]
[null,"To be read in conjunction with the scope of work"]
[null,"Costs to be all-inclusive"]
[]
[1,{"$f":"B4","v":"Western Cape"}]
[1.1,"Supervisor – Firebreaks","Hr",1,{"$nulls":3},{"$f":"D18*G18","v":0}]
[1.2,"Supervisor – Land Facilities Maintenance","Hr",1,{"$nulls":3},0]
[1.3,"Supervisor – Invasive Species Clearing/Maintenance","Hr",1,{"$nulls":3},0]
[]
[2,"Communication Costs",null,null,"Daily rate","Weekly rate","Monthly rate"]
[2.1,"Communication","sum",1,{"$nulls":3},{"$f":"D23*G23","v":0}]
[]
[]
["Item No.","Description","Unit","Quantity","Rate","Amount"]
[3,"Health and Safety"]
[3.1,"PPE**","each",{"v":1,"d":"1.00"},null,{"$f":"(D28*E28)","v":0}]
[3.2,"Medicals**","each",{"v":1,"d":"1.00"},null,{"$f":"(D29*E29)","v":0}]
[3.3,"Health and Safety File","each",{"v":1,"d":"1.00"},null,0]
[3.4,"Safety Training***","each",{"v":1,"d":"1.00"},null,0]
[]
[4,"Miscellaneous costs"]
[4.1,"Transport","Km",{"v":1,"d":"1.00"},null,0]
[4.2,"Accommodation – Hotel / Lodge / Guesthouse (3-star equivalent) including breakfast and dinner, when overnight stays are required.","Night",{"v":1,"d":"1.00"},null,0]
[]
[5,"Asbestos Removal"]
[5.1,"Asbestos Removal Procedure Advisory (per scope requirement)","Hr",{"v":1,"d":"1.00"},null,0]
[5.2,"Advisory Services – Legal & Regulatory Compliance (permits, environmental laws)","Hr",{"v":1,"d":"1.00"},null,0]
[null,"TOTAL",{"$nulls":3},{"$f":"SUM(F28:F39)","v":0}]
[]
[null,"Note:"]
[null,"Basic rate is the employee’s wage only"]
[null,"Indirect costs are the extras, such as employee benefits, allowances, overheads, and profit"]
[null,"Final rate is the all-in cost (total basic salary), meaning the basic wage plus the benefits, allowances, overheads, and profit."]
[null,"Overtime factors: \nWeekday/Saturday (outside normal hours) - 0,5\nSunday/Public holiday (all hours) - 1,0\n"]
[null,"Overtime Calculation Method:\n\nEmployer will fully compensate the Contractor for their profit and overheads for all hours worked.\n\nExample (Weekday – Monday to Saturday)\nAssume an employee worked a total of 12 hours in one day:\n\nNormal Time: 12 hours × R100.00 × 1.00 = R1,200.00 (includes profit and overheads)\nOvertime: 4 hours × R45.00 × 0.50 = R90.00\nTotal Reimbursement: R1,290.00\n\nNote: Profit and overheads are applied to all hours worked. Overtime factors are applied to the basic rate."]
[]
[null,"Key:"]
["**","Items to be paid once annually per resource"]
["***","Contractor to identify the training required"]